[Event "81st Italian Championship 2022"]
[Site "Cagliari"]
[Date "2022.11.14"]
[Round "3.4"]
[White "Brunello, Sabino"]
[Black "Dvirnyy, Danyyil"]
[Result "1-0"]
[ECO "B15"]
[WhiteElo "2518"]
[BlackElo "2514"]
[Annotator "TA"]
[PlyCount "77"]
[EventDate "2022.11.12"]
[EventType "tourn"]
[EventCountry "ITA"]
[SourceTitle "playchess.com"]
[Source "ChessBase"]
[SourceQuality "1"]
[TimeControl "40/6000+30:20/3000:900+30"]

{[%evp 11,77,0,11,-11,-6,-26,0,0,10,14,9,-1,6,8,0,0,0,18,22,3,23,-30,0,0,0,0,0,0,0,0,12,20,18,19,22,13,32,32,33,36,34,39,38,48,37,0,14,14,11,9,4,0,14,12,26,27,531,555,547,503,559,566,566,566,560,556,543,467]} 1. e4 {[%emt 0:01:03]} c6 {[%emt 0:00:38]} 2. Nc3 {[%emt 0:00:49]} d5 {[%emt 0:00:17]} 3. Nf3 {[%emt 0:00:06]} dxe4 {[%emt 0:04:01]} 4. Nxe4 {[%emt 0:00:16]} Nf6 {[%emt 0:00:10]} 5. Ng3 {[%emt 0:03:27]} g6 {[%emt 0:06:10]} 6. d4 {[%emt 0:07:11]} Bg7 {[%emt 0:03:02]} 7. h3 {[%emt 0:10:07] B15: Caro-Kann: 3 Nc3: 3...g6 and 3...dxe4 4 Nxe4 Nf6 5 Nxf6+ exf6.} c5 {[%emt 0:05:38] [#]} 8. Be2 $146 {[%emt 0:02:33]} ({Predecessor:} 8. dxc5 Qxd1+ 9. Kxd1 Nbd7 10. c3 O-O 11. Kc2 Nxc5 12. Be3 b6 13. Bxc5 bxc5 14. Re1 {0-1 (77) Schmakel,S (2349)-Bregadze,L (2467) Chicago 2016}) 8... Nc6 {[%emt 0:10:53]} 9. dxc5 {[%emt 0:11:05] The position is equal.} Qxd1+ {[%emt 0:07:20]} 10. Kxd1 {[%emt 0:07:05]} Nd7 {[%emt 0:15:52]} 11. c3 {[%emt 0:00:36]} f5 {[%emt 0:01:56]} 12. Re1 {[%emt 0:30:50]} e5 {[%emt 0:01:40]} 13. Bb5 {[%emt 0:02:48]} O-O {[%emt 0:10:04]} 14. Ng5 {[%emt 0:08:09]} Nd8 {[%emt 0:01:31]} 15. f4 {[%emt 0:04:08]} h6 {[%emt 0:04:57]} 16. fxe5 {[%emt 0:11:35]} ({Better is} 16. Bc4+ Kh8 17. Nf3) 16... hxg5 {[%emt 0:10:43]} 17. e6 {[%emt 0:00:20]} Nxe6 {[%emt 0:00:07]} 18. Rxe6 {[%emt 0:00:06]} Nf6 {[%emt 0:06:55]} 19. Re7 {[%emt 0:00:12]} f4 {[%emt 0:00:11]} 20. Ne2 {[%emt 0:01:04]} Rd8+ {[%emt 0:01:20]} 21. Nd4 {[%emt 0:02:44]} Kf8 {[%emt 0:02:23]} 22. Re2 {[%emt 0:01:36]} Bf5 {[%emt 0:00:57]} 23. Ke1 {[%emt 0:00:18]} Ne4 {[%emt 0:02:03]} 24. c6 {[%emt 0:01:43]} Bxd4 {[%emt 0:03:21]} 25. cxd4 {[%emt 0:00:47] [#] b3 is the strong threat.} Rxd4 {[%emt 0:00:34] aiming for ...Rad8.} 26. b3 {[%emt 0:02:07]} (26. cxb7 $2 Rad8 27. Be3 fxe3 28. Rxe3 Nc5 $19) 26... bxc6 {[%emt 0:06:51]} 27. Bxc6 {[%emt 0:00:01]} Rc8 $1 {[%emt 0:00:47]} 28. Ba3+ {[%emt 0:00:01]} (28. Bb2 $5 {[%cal Rb2d4]} Ng3 29. Re5 $14 (29. Bxd4 Nxe2 30. Bc5+ Kg7 $11)) 28... Kf7 {[%emt 0:00:34]} 29. Rc1 $36 {[%emt 0:00:06][%mdl 2048] [#] Black must now prevent Bb2. White fights for an advantage.} Rcd8 $1 {[%emt 0:01:32]} 30. Bb7 {[%emt 0:01:00]} R8d7 {[%emt 0:00:38]} 31. Bc6 {[%emt 0:00:11]} Rd8 {[%emt 0:00:07]} 32. Bb5 {[%emt 0:01:24] And now Rc7+ would win. A strong pair of Bishops.} g4 {[%emt 0:00:47]} 33. Rc7+ {[%emt 0:00:57]} (33. Bb2 gxh3 34. gxh3 Rd2 $16) 33... Kf6 $2 {[%emt 0:01:02][%mdl 8192] Loses the game.} ({Weaker is} 33... Kg8 34. Bc4+ Rxc4 35. Rxc4 (35. bxc4 Nc3 $11) 35... gxh3 36. gxh3 $16 (36. Rcxe4 h2 $11)) (33... Ke6 $1 $11 {and Black stays safe.} 34. Bc4+ Ke5 35. Re7+ Kf6 36. Rf7+ Ke5) 34. Be7+ $18 {[%emt 0:00:26] White is clearly winning.} Ke5 {[%emt 0:00:18][%csl Gd8][%cal Rd4d1]} 35. Bxd8 {[%emt 0:00:01]} Rxd8 {[%emt 0:00:32]} 36. hxg4 {[%emt 0:00:58]} Rh8 {[%emt 0:00:20][%cal Rh8h1]} 37. Kd1 {[%emt 0:00:17]} ({Less strong is} 37. Rc5+ Kf6 38. g5+ (38. Rc6+ Kg5 $14) 38... Ke6 $16) 37... Bxg4 {[%emt 0:02:09]} 38. Re7+ {[%emt 0:00:07]} Kd5 {[%emt 0:00:34]} 39. R7xe4 {[%emt 0:00:26] Weighted Error Value: White=0.06 (flawless) /Black=0.15 (very precise)} 1-0

[Event "81st Italian Championship 2022"]
[Site "Cagliari"]
[Date "2022.11.14"]
[Round "3.5"]
[White "Basso, Pier Luigi"]
[Black "Di Benedetto, Edoardo"]
[Result "1-0"]
[ECO "C11"]
[WhiteElo "2503"]
[BlackElo "2378"]
[Annotator "TA"]
[PlyCount "82"]
[EventDate "2022.11.12"]
[EventType "tourn"]
[EventCountry "ITA"]
[SourceTitle "playchess.com"]
[Source "ChessBase"]
[SourceQuality "1"]
[TimeControl "40/6000+30:20/3000:900+30"]

{[%evp 14,82,22,11,19,21,26,21,17,28,27,25,59,49,41,51,54,53,53,53,49,50,56,55,55,59,56,45,49,56,48,48,68,48,74,63,75,64,81,6,9,0,77,61,68,38,79,48,48,33,44,41,41,41,47,47,62,50,64,34,108,103,196,151,244,236,242,232,239,232,221]} 1. e4 {[%emt 0:00:03]} e6 {[%emt 0:01:02]} 2. d4 {[%emt 0:00:07]} d5 {[%emt 0:00:05]} 3. Nc3 {[%emt 0:00:10]} Nf6 {[%emt 0:00:06]} 4. e5 {[%emt 0:00:07]} Nfd7 {[%emt 0:00:05]} 5. f4 {[%emt 0:00:08]} c5 {[%emt 0:00:08]} 6. Nf3 {[%emt 0:00:06]} Nc6 {[%emt 0:00:07]} 7. Be3 {[%emt 0:00:08]} a6 {[%emt 0:02:14]} 8. a3 {[%emt 0:01:31]} b5 {[%emt 0:06:46] C11: French: Classical System: 4 e5 and 4 Bg5 dxe4.} 9. Bd3 {[%emt 0:01:05]} Qb6 {[%emt 0:02:16][%cal Rc6d4]} 10. O-O {[%emt 0:01:15]} cxd4 {[%emt 0:04:29] The position is equal.} 11. Bf2 {[%emt 0:04:08]} Bc5 {[%emt 0:01:46]} 12. Na2 {[%emt 0:08:07] [#]} a5 $146 {[%emt 0:02:06]} ({Predecessor:} 12... h6 13. b4 Be7 14. Nc1 O-O 15. Nb3 Qc7 16. Nbxd4 Re8 17. Qe2 Bf8 18. Rae1 Nb6 {1-0 (35) Ratsma,M (2259)-Trippold,D (2113) Belgrade 2021}) 13. b4 {[%emt 0:00:26]} axb4 {[%emt 0:01:48]} 14. axb4 {[%emt 0:00:06]} (14. Nxb4 {seems wilder.} Ra4 15. f5 Nxb4 16. axb4 Rxa1 17. Qxa1 Bxb4 18. fxe6 fxe6 19. Qxd4 Qxd4 20. Nxd4 Nxe5 21. Bxb5+ Bd7 22. Ra1) 14... Nxb4 {[%emt 0:03:55]} 15. Nxb4 {[%emt 0:00:10]} Rxa1 {[%emt 0:00:06]} 16. Qxa1 {[%emt 0:00:11][%cal Rf2d4]} Bxb4 {[%emt 0:00:05]} 17. Rb1 {[%emt 0:01:56]} Bc3 {[%emt 0:02:02]} 18. Qxc3 {[%emt 0:04:36]} dxc3 {[%emt 0:00:07]} 19. Bxb6 {[%emt 0:00:05]} Nxb6 {[%emt 0:00:07]} 20. Rxb5 {[%emt 0:01:20]} Nd7 {[%emt 0:01:27]} 21. Rb3 {[%emt 0:02:41][%cal Bb5b3,Bb3c3,Bc3c7][%mdl 32]} O-O {[%emt 0:20:43]} 22. Rxc3 {[%emt 0:00:19]} Rd8 {[%emt 0:07:26]} 23. Kf2 {[%emt 0:11:55]} Nf8 {[%emt 0:00:20]} 24. Rc7 {[%emt 0:01:21]} Bd7 {[%emt 0:01:37]} 25. Ke3 {[%emt 0:05:52] White is much more active.} Ra8 {[%emt 0:09:27]} 26. Kd4 {[%emt 0:08:41]} ({White should try} 26. g4 $16) 26... Ra4+ $11 {[%emt 0:04:06]} 27. Ke3 {[%emt 0:05:41]} h6 {[%emt 0:06:06]} (27... Ra8 $1 $11) 28. g3 {[%emt 0:00:22]} g6 {[%emt 0:07:19]} 29. Rb7 {[%emt 0:01:29]} Kg7 {[%emt 0:02:01]} 30. Rb8 {[%emt 0:01:25]} Ra7 {[%emt 0:01:18]} 31. Kd4 {[%emt 0:02:23]} Rc7 {[%emt 0:00:21]} 32. g4 {[%emt 0:01:33]} Ba4 {[%emt 0:02:15]} 33. Rb2 {[%emt 0:05:46]} Nd7 {[%emt 0:17:34]} 34. f5 {[%emt 0:01:06]} gxf5 {[%emt 0:03:03]} 35. gxf5 {[%emt 0:00:02]} exf5 {[%emt 0:00:12]} 36. Nh4 {[%emt 0:01:40]} (36. Bxf5 $5 {[%cal Rd4d5]} Bc6 37. e6 $16) 36... Nc5 {[%emt 0:02:10]} (36... f4 $14) 37. Nxf5+ $16 {[%emt 0:00:07]} Kh7 {[%emt 0:00:13]} (37... Kg6 $16) 38. Ne3+ {[%emt 0:00:45] White is clearly better.} Nxd3 {[%emt 0:01:27]} (38... Kg8 $16 {was necessary.} 39. Kxd5 Bd7 40. Rb8+ Kg7 41. Nf5+ Bxf5 42. Bxf5 Ne6) 39. cxd3 $18 {[%emt 0:00:13]} Rd7 {[%emt 0:01:01]} 40. Rb6 {[%emt 0:00:04]} ({Not} 40. Nxd5 $2 Bc6 41. Ke3 Rxd5 $19) 40... h5 {[%emt 0:00:27]} 41. h4 {[%emt 0:53:01]} ({Much less strong is} 41. Nxd5 Ra7 42. Ke3 Kg7) 41... Kg8 {[%emt 0:49:27] Weighted Error Value: White=0.13 (very precise) /Black=0.21 (precise)} 1-0

[Event "81st Italian Championship 2022"]
[Site "Cagliari"]
[Date "2022.11.14"]
[Round "3.6"]
[White "David, Alberto"]
[Black "Sonis, Francesco"]
[Result "1/2-1/2"]
[ECO "C11"]
[WhiteElo "2517"]
[BlackElo "2547"]
[Annotator "TA"]
[PlyCount "50"]
[EventDate "2022.11.12"]
[EventType "tourn"]
[EventCountry "ITA"]
[SourceTitle "playchess.com"]
[Source "ChessBase"]
[SourceQuality "1"]
[TimeControl "40/6000+30:20/3000:900+30"]

{[%evp 17,50,0,1,0,0,0,2,7,19,15,19,25,47,41,41,37,64,29,27,42,35,22,40,16,18,10,14,6,8,7,8,0,0,0,0]} 1. e4 {[%emt 1:41:00]} e6 {[%emt 0:01:41]} 2. d4 {[%emt 0:00:00]} d5 {[%emt 0:00:11]} 3. Nc3 {[%emt 0:00:00]} Nf6 {[%emt 0:01:06]} 4. e5 {[%emt 0:00:00]} Nfd7 {[%emt 0:00:06]} 5. f4 {[%emt 0:00:00]} c5 {[%emt 0:00:03]} 6. Nf3 {[%emt 0:00:00]} Nc6 {[%emt 0:00:04]} 7. Be3 {[%emt 0:00:00]} a6 {[%emt 0:00:04]} 8. Qd2 {[%emt 0:00:00]} b5 {[%emt 0:00:05]} 9. dxc5 {[%emt 0:00:00]} Bxc5 {[%emt 0:00:08]} 10. Bd3 {[%emt 0:00:00] C11: French: Classical System: 4 e5 and 4 Bg5 dxe4.} Qb6 {[%emt 0:08:07]} ({But not} 10... d4 11. Nxd4 Nxd4 12. Ne4 $16) 11. Bf2 {[%emt 0:00:00]} Bxf2+ {[%emt 0:14:17]} 12. Qxf2 {[%emt 0:00:00]} Qxf2+ {[%emt 0:00:04]} 13. Kxf2 {[%emt 0:00:00]} Nc5 {[%emt 0:00:03]} 14. Ne2 {[%emt 0:00:00]} b4 {[%emt 0:05:45]} 15. Ned4 {[%emt 0:00:00]} Nxd4 {[%emt 0:00:08]} 16. Nxd4 {[%emt 0:00:00]} Bd7 {[%emt 0:08:31]} 17. Ke3 {[%emt 0:00:00] White is more active.} Ke7 {[%emt 0:08:12] [#]} 18. a3 $146 {[%emt 0:00:00]} ({Predecessor:} 18. Rhc1 Rhc8 19. h4 h6 20. a3 a5 21. h5 Na4 22. Rcb1 Rcb8 23. axb4 axb4 24. g4 {½-½ (75) Chigaev,M (2531)-Taboas Rodriguez,D (2383) Chess.com INT 2016}) 18... a5 {[%emt 0:06:07]} 19. b3 {[%emt 0:00:00]} Rhb8 {[%emt 0:23:09][%cal Bh8b8,Bb8b4,Bb4a4,Ba4a8][%mdl 32]} 20. Rhb1 {[%emt 0:00:00]} a4 {[%emt 0:15:11] The position is equal.} 21. axb4 {[%emt 0:00:00]} Rxb4 {[%emt 0:02:26]} 22. bxa4 {[%emt 0:00:00]} Raxa4 {[%emt 0:03:54]} 23. Rxa4 {[%emt 0:00:00]} Rxa4 {[%emt 0:01:11]} 24. h4 {[%emt 0:00:00]} h5 {[%emt 0:01:18]} 25. g3 {[%emt 0:01:14]} Ra8 {[%emt 0:00:55] Weighted Error Value: White=0.07 (flawless) /Black=0.06 (flawless)} 1/2-1/2

[Event "81st Italian Championship 2022"]
[Site "Cagliari"]
[Date "2022.11.15"]
[Round "4.1"]
[White "Barp, Alberto"]
[Black "Sonis, Francesco"]
[Result "1/2-1/2"]
[ECO "E15"]
[WhiteElo "2412"]
[BlackElo "2547"]
[Annotator "TA"]
[PlyCount "68"]
[EventDate "2022.11.12"]
[EventType "tourn"]
[EventCountry "ITA"]
[SourceTitle "playchess.com"]
[Source "ChessBase"]
[SourceQuality "1"]
[TimeControl "40/6000+30:20/3000:900+30"]

{[%evp 19,68,25,21,9,17,0,10,19,20,20,22,16,20,12,20,14,3,3,2,5,8,0,0,0,0,0,0,0,25,0,0,0,0,0,6,0,0,0,0,0,2,0,0,0,10,0,0,0,9,0,0]} 1. d4 {[%emt 0:02:38]} Nf6 {[%emt 0:00:05]} 2. c4 {[%emt 0:00:38]} e6 {[%emt 0:00:06]} 3. Nf3 {[%emt 0:00:25]} b6 {[%emt 0:00:11]} 4. g3 {[%emt 0:00:05]} Ba6 {[%emt 0:00:04]} 5. b3 {[%emt 0:01:04]} Bb4+ {[%emt 0:00:07]} 6. Bd2 {[%emt 0:00:04]} Be7 {[%emt 0:00:05]} 7. Nc3 {[%emt 0:00:06]} d5 {[%emt 0:00:04]} 8. cxd5 {[%emt 0:00:05]} exd5 {[%emt 0:00:06]} 9. Bg2 {[%emt 0:00:06]} O-O {[%emt 0:00:06]} 10. O-O {[%emt 0:00:04]} Re8 {[%emt 0:00:03] 10...Nbd7 is setting a new trend.} 11. Ne5 {[%emt 0:00:25][%cal Ob3b4] E15: Queen's Indian: 4 g3 sidelines, 4 g3 Ba6 and 4 g3 Bb7 early deviations.} Bb7 {[%emt 0:00:06]} 12. Qc2 {[%emt 0:00:24]} c5 {[%emt 0:02:17]} 13. dxc5 {[%emt 0:00:25]} bxc5 {[%emt 0:03:07]} 14. Rad1 {[%emt 0:01:54]} Qc8 {[%emt 0:09:41]} 15. e4 {[%emt 0:04:29]} Bf8 {[%emt 0:12:59]} 16. f4 {[%emt 0:04:03][%cal Re4d5]} dxe4 {[%emt 0:26:58]} (16... d4 {keeps more tension.} 17. Nd5 Nbd7 18. Nxf6+ gxf6 19. Nc4 Nb6) 17. Nxe4 {[%emt 0:04:35]} Nxe4 {[%emt 0:01:03]} 18. Bxe4 {[%emt 0:00:05]} Bxe4 {[%emt 0:00:04]} 19. Qxe4 {[%emt 0:00:08]} Nd7 {[%emt 0:00:03] [#]} 20. Qd5 $146 {[%emt 0:19:57][%csl LRd7,LRf7]} ({Predecessor:} 20. Qc4 Re7 21. Rfe1 {½-½ (21) Hamarat,T (2518)-Domancich,E (2433) ICCF email 2018}) 20... Nxe5 {[%emt 0:01:24]} 21. fxe5 {[%emt 0:00:12]} Qc7 {[%emt 0:00:09]} 22. Bc3 {[%emt 0:02:05]} Rad8 {[%emt 0:00:24] Inhibits Qd7.} 23. Qc4 {[%emt 0:01:49] [#] Rxd8 is the strong threat.} Qe7 {[%emt 0:08:31]} 24. Rxd8 {[%emt 0:31:26]} Rxd8 {[%emt 0:00:10] The position is equal.} 25. Re1 {[%emt 0:00:03]} Re8 {[%emt 0:03:33]} 26. Rd1 {[%emt 0:02:13]} h5 {[%emt 0:00:08]} 27. h4 {[%emt 0:04:34]} Qb7 {[%emt 0:05:10]} 28. Qd5 {[%emt 0:04:56]} Qa6 {[%emt 0:00:32]} 29. Rd2 {[%emt 0:00:16]} Qg6 {[%emt 0:03:20]} 30. Kg2 {[%emt 0:01:49]} Be7 {[%emt 0:00:18]} 31. Qd3 {[%emt 0:07:02]} Qg4 {[%emt 0:05:36]} 32. Qf3 {[%emt 0:04:28]} Qg6 {[%emt 0:00:06]} 33. Qd3 {[%emt 0:00:14]} Qg4 {[%emt 0:00:06]} 34. Qf3 {[%emt 0:00:27]} Qg6 {[%emt 0:30:48] A balanced but interesting game.  Weighted Error Value: White=0.04 (flawless) /Black=0.04 (flawless)} 1/2-1/2

[Event "81st Italian Championship 2022"]
[Site "Cagliari"]
[Date "2022.11.15"]
[Round "4.2"]
[White "Di Benedetto, Edoardo"]
[Black "David, Alberto"]
[Result "0-1"]
[ECO "E08"]
[WhiteElo "2378"]
[BlackElo "2517"]
[Annotator "TA"]
[PlyCount "78"]
[EventDate "2022.11.12"]
[EventType "tourn"]
[EventCountry "ITA"]
[SourceTitle "playchess.com"]
[Source "ChessBase"]
[SourceQuality "1"]
[TimeControl "40/6000+30:20/3000:900+30"]

{[%evp 17,78,0,28,-6,37,36,48,30,40,0,27,27,0,-8,28,4,23,38,44,37,70,-109,-125,-121,-126,-115,-120,-113,-120,-76,-25,-16,-38,-66,-68,-76,-95,-110,-88,-95,-107,-87,-88,-306,-316,-311,-302,-414,-439,-512,-514,-510,-520,-532,-543,-983,-962,-937,-895,-872,-863,-810,-660]} 1. d4 {[%emt 0:00:03]} Nf6 {[%emt 0:00:19]} 2. c4 {[%emt 0:00:05]} e6 {[%emt 0:00:21]} 3. Nf3 {[%emt 0:00:14]} d5 {[%emt 0:00:46]} 4. g3 {[%emt 0:00:53]} Bb4+ {[%emt 0:00:51]} 5. Bd2 {[%emt 0:00:46]} Be7 {[%emt 0:01:02]} 6. Bg2 {[%emt 0:00:30]} c6 {[%emt 0:00:34]} 7. Qc2 {[%emt 0:02:04]} Nbd7 {[%emt 0:00:07]} 8. O-O {[%emt 0:00:17]} O-O {[%emt 0:00:41]} 9. Bf4 {[%emt 0:18:11] 9.Bf4 scores better than 9.Rd1.} a5 {[%emt 0:00:50]} 10. b3 {[%emt 0:02:38] E08: Closed Catalan: Main Line: 7 Qc2.} a4 {[%emt 0:20:40]} 11. Nc3 {[%emt 0:00:34]} Qa5 {[%emt 0:00:19] [#]} 12. c5 $146 {[%emt 0:13:52][%cal Rc3a4] White is slightly better.} ({Predecessor:} 12. Rab1 axb3 13. axb3 b5 14. c5 b4 15. Na4 Ba6 16. Ne5 Nxe5 17. Bxe5 Nd7 18. Bf4 {0-1 (31) Panarin,V (2019)-Pushkov,N (2303) Armavir 2015}) 12... axb3 {[%emt 0:09:53]} 13. Qxb3 {[%emt 0:01:19]} (13. axb3 {keeps more tension.} Qxa1 14. Rxa1 Rxa1+ 15. Bf1) 13... Ra6 {[%emt 0:21:23]} 14. Rfb1 {[%emt 0:05:02]} Qd8 {[%emt 0:10:07]} 15. Bf1 {[%emt 0:04:01]} Nh5 {[%emt 0:03:06]} 16. e4 {[%emt 0:08:20][%cal Be2e4,Be4e5][%mdl 32]} Ra8 {[%emt 0:14:12]} 17. Bd2 {[%emt 0:02:13]} Nhf6 {[%emt 0:01:33][%cal Od7c5,Bh5f6,Bf6e4,Be4d2][%mdl 32] [#] Threatens to win with ...Nxc5!} 18. e5 {[%emt 0:00:39]} Ne4 {[%emt 0:00:15]} 19. Bd3 $2 {[%emt 0:04:15]} (19. Be3 $14 {stays ahead.}) 19... Nxd2 $17 {[%emt 0:02:50]} 20. Nxd2 {[%emt 0:00:07] [#]} f6 $1 {[%emt 0:00:30]} 21. f4 {[%emt 0:03:36]} fxe5 {[%emt 0:05:10]} 22. fxe5 {[%emt 0:00:06]} Bg5 {[%emt 0:01:03]} 23. Nf1 {[%emt 0:01:03]} Qe8 {[%emt 0:02:04]} (23... b6 $17 24. cxb6 c5) 24. Qc2 {[%emt 0:05:32]} Qh5 {[%emt 0:00:23]} 25. Qe2 {[%emt 0:03:08] Against Qg4} Qxe2 {[%emt 0:08:47]} 26. Bxe2 {[%emt 0:01:17]} Bd8 {[%emt 0:00:05] And now ...b6 would win. Black is more active.} 27. Bg4 {[%emt 0:07:46]} Re8 {[%emt 0:00:03]} 28. Nd2 {[%emt 0:01:09]} b6 {[%emt 0:00:38]} 29. cxb6 {[%emt 0:06:00]} Bxb6 {[%emt 0:00:05]} 30. Nb3 {[%emt 0:00:40] Loses the game.} (30. Nf3 $17 {was called for.}) 30... Nxe5 $1 $19 {[%emt 0:00:22]} 31. Be2 {[%emt 0:00:06]} Ra3 {[%emt 0:01:15]} 32. Kg2 {[%emt 0:00:32]} Nc4 {[%emt 0:00:33] Strongly threatening ...Ne3+.} 33. Bd3 {[%emt 0:01:38] Black is clearly winning.} e5 {[%emt 0:01:01][%cal Be6e5,Be5d4][%mdl 32]} 34. Re1 {[%emt 0:01:24]} Bd7 {[%emt 0:01:47]} 35. Nb1 {[%emt 0:00:52]} Raa8 {[%emt 0:00:16]} 36. Bxc4 {[%emt 0:00:37]} dxc4 {[%emt 0:00:03]} 37. Nc5 {[%emt 0:00:07]} exd4 {[%emt 0:00:13]} 38. Nxd7 {[%emt 0:00:24]} Rxe1 {[%emt 0:00:05]} 39. Nxb6 {[%emt 0:00:05]} Rb8 {[%emt 0:00:31] Weighted Error Value: White=0.52/Black=0.08 (flawless)} 0-1

[Event "81st Italian Championship 2022"]
[Site "Cagliari"]
[Date "2022.11.15"]
[Round "4.3"]
[White "Dvirnyy, Danyyil"]
[Black "Basso, Pier Luigi"]
[Result "1-0"]
[ECO "B12"]
[WhiteElo "2514"]
[BlackElo "2503"]
[Annotator "TA"]
[PlyCount "115"]
[EventDate "2022.11.12"]
[EventType "tourn"]
[EventCountry "ITA"]
[SourceTitle "playchess.com"]
[Source "ChessBase"]
[SourceQuality "1"]
[TimeControl "40/6000+30:20/3000:900+30"]

{[%evp 13,115,33,53,52,63,19,19,18,21,21,14,1,13,2,3,8,4,0,0,0,0,0,0,0,22,27,29,31,54,39,100,100,100,100,100,100,100,100,100,100,100,100,100,100,100,100,100,92,92,89,87,83,83,80,98,0,0,0,0,0,0,0,0,0,221,154,1596,4706,5694,4678,5616,5525,4718,2463,5616,5069,4617,3084,2813,1449,5180,4740,29957,29963,29968,29969,29968,29970,29970,29971,29971,29972,29973,29974,29974,29973,29973,29974,29974,29973,29973,29972,29968,29955]} 1. e4 {[%emt 0:00:05]} c6 {[%emt 0:00:06][%cal Bc7c6,Bc6c5][%mdl 32]} 2. d4 {[%emt 0:00:38]} d5 {[%emt 0:00:05]} 3. e5 {[%emt 0:00:33]} Bf5 {[%emt 0:00:08]} 4. Nf3 {[%emt 0:00:33]} e6 {[%emt 0:00:06]} 5. Be2 {[%emt 0:00:10]} c5 {[%emt 0:00:06]} 6. Be3 {[%emt 0:00:33]} Qb6 {[%emt 0:00:35] seems to push 6...cxd4 aside.} 7. Nc3 {[%emt 0:00:28]} Nc6 {[%emt 0:00:23]} ({Don't do} 7... Qxb2 8. Nb5 $16) 8. O-O $1 {[%emt 0:01:39] B12: Caro-Kann: Advance Variation.} Qxb2 {[%emt 0:00:39]} 9. Qe1 {[%emt 0:00:09]} (9. Nb5 $5 {[%cal Rb5c7]} Rc8 10. c4 $16) 9... cxd4 {[%emt 0:00:09]} (9... Bxc2 10. dxc5 Bg6 11. a3 $16) 10. Bxd4 {[%emt 0:00:18] The position is equal.} Nxd4 {[%emt 0:00:09]} (10... Qxc2 $2 11. Rc1 Qb2 12. Nxd5 $1 {[%mdl 512]} Qxc1 13. Nc7+ Kd7 14. Qxc1 $18) (10... Bxc2 $2 11. Nb5 Nxd4 12. Nfxd4 $18) 11. Nxd4 {[%emt 0:00:05]} Bb4 {[%emt 0:00:15]} 12. Ndb5 {[%emt 0:05:41] Threatens to win with Rb1.} Ba5 $1 {[%emt 0:01:07]} ({Don't play} 12... Bxc2 13. Qd2 Bxc3 14. Nxc3 $16) 13. Rb1 {[%emt 0:00:21]} Qxc2 {[%emt 0:00:18]} 14. Rc1 {[%emt 0:00:11]} Qb2 {[%emt 0:00:20]} 15. Nd6+ {[%emt 0:01:31] Pair of Knights!} Kf8 {[%emt 0:01:32] White must now prevent ...Ne7.} 16. Nxf5 {[%emt 0:00:41]} exf5 {[%emt 0:00:07]} 17. Na4 {[%emt 0:00:09][%cal Bc3a4,Ba4b2,Bb2c4][%mdl 32]} Bxe1 {[%emt 0:03:33]} 18. Nxb2 {[%emt 0:00:09]} Ba5 {[%emt 0:34:43]} 19. Rc5 $1 $36 {[%emt 0:01:23][%csl LRa5,LRd5][%mdl 2048] White has some pressure.} Bb6 {[%emt 0:03:38]} 20. Rxd5 {[%emt 0:00:07] [#]} Re8 $146 {[%emt 0:04:22]} ({Predecessor:} 20... Ke7 21. Rfd1 Rd8 22. Bb5 Rxd5 23. Rxd5 Nh6 24. Rd7+ Ke6 25. Rd6+ Ke7 26. Rd7+ Ke6 27. Rd6+ Ke7 28. Rd7+ {½-½ (28) Brkic,A (2573)-Donchenko,A (2615) Biel 2019}) 21. Nc4 {[%emt 0:04:42]} Nf6 {[%emt 0:19:55]} (21... g5 $14) 22. exf6 $16 {[%emt 0:09:01] White is more active.} Rxe2 {[%emt 0:00:11]} 23. Nxb6 {[%emt 0:03:30]} ({Much worse is} 23. Rxf5 $6 Bd8 $11) 23... axb6 {[%emt 0:00:18][%mdl 4096] Endgame KRR-KRR} 24. Rd8+ {[%emt 0:08:01]} Re8 {[%emt 0:00:21]} 25. Rxe8+ {[%emt 0:01:46]} Kxe8 {[%emt 0:00:01]} 26. fxg7 {[%emt 0:12:47] KR-KR} Rg8 {[%emt 0:00:55]} 27. Rb1 {[%emt 0:00:53]} Rxg7 {[%emt 0:15:25]} 28. Rxb6 {[%emt 0:04:39]} Rg4 {[%emt 0:00:10]} 29. Rxb7 {[%emt 0:00:44]} Ra4 {[%emt 0:00:07]} 30. Rb2 {[%emt 0:00:08]} Ke7 {[%emt 0:00:05]} 31. Re2+ {[%emt 0:08:37]} Kf6 {[%emt 0:00:12]} 32. Kf1 {[%emt 0:00:29]} h5 {[%emt 0:04:29]} 33. Ke1 {[%emt 0:03:49]} Rh4 {[%emt 0:01:43]} 34. Kd2 {[%emt 0:15:41]} (34. h3 $16) 34... Rxh2 $11 {[%emt 0:01:25]} 35. f4 {[%emt 0:01:37]} Rh1 {[%emt 0:01:06]} 36. Kc3 {[%emt 0:00:34]} Rf1 {[%emt 0:11:29]} 37. a4 {[%emt 0:00:13][%cal Ba2a4,Ba4a5,Ba5a6,Ba6a7][%mdl 32] And now a5 would win.} Rxf4 {[%emt 0:00:06]} 38. Ra2 {[%emt 0:00:03]} Rg4 $2 {[%emt 0:03:52]} (38... h4 $1 $11 {and Black is okay.}) 39. a5 $18 {[%emt 0:00:11][%mdl 1024] Hoping for a6. White has strong compensation.} Ke5 $2 {[%emt 0:01:12] Black cannot hold the game after this.} (39... Rg8 $16) 40. a6 {[%emt 0:01:04]} Rg8 {[%emt 0:00:03]} 41. a7 {[%emt 0:52:14]} Ra8 {[%emt 0:49:37] [#]} 42. Kd3 $1 {[%emt 0:00:00]} Kf4 {[%emt 0:00:00] [#]} 43. Ke2 $1 {[%emt 0:00:00]} h4 {[%emt 0:00:00]} 44. Ra4+ {[%emt 0:00:00]} Kg3 {[%emt 0:00:00]} 45. Kf1 {[%emt 0:00:00]} f4 {[%emt 0:00:00]} 46. Ra3+ {[%emt 0:00:00]} Kg4 {[%emt 0:00:00]} 47. Kf2 {[%emt 0:00:00]} f6 {[%emt 0:00:00]} 48. Ra5 {[%emt 0:00:00] White mates.} f5 {[%emt 0:00:00]} 49. Ra4 {[%emt 0:00:00]} Kg5 {[%emt 0:00:00]} 50. Kf3 {[%emt 0:00:00]} Kf6 {[%emt 0:00:00]} 51. Kxf4 {[%emt 0:00:00]} Ke6 {[%emt 0:00:00]} 52. Ra2 {[%emt 0:00:00]} Kd6 {[%emt 0:00:00]} 53. Kxf5 {[%emt 0:00:00]} Kc6 {[%emt 0:00:00]} 54. Kg5 {[%emt 0:00:00]} Kb7 {[%emt 0:00:00]} 55. Kxh4 {[%emt 0:00:00]} Rh8+ {[%emt 0:00:00]} 56. Kg5 {[%emt 0:00:00]} Rg8+ {[%emt 0:00:00]} 57. Kf4 {[%emt 0:00:00]} Rf8+ {[%emt 0:00:00]} 58. Ke4 {[%emt 0:23:53] Weighted Error Value: White=0.04 (flawless) /Black=0.26 (precise)} 1-0